fUST/lending_fUST_20250819
["ID","MTS","AMOUNT","RATE_DAILY","PERIOD"]
[380212591,1755612648239,-480.0,0.00019452,2]
[380212592,1755612648248,-480.0,0.00019452,2]
[380212593,1755612648258,-151.0,0.00019452,2]
[380212594,1755612648267,-151.0,0.00019452,2]
[380212595,1755612648276,-767.4,0.00019452,2]
[380212596,1755612648285,-151.0,0.00019452,2]
[380212597,1755612648294,-736.09,0.00019452,2]
[380212598,1755612648303,-440.0,0.00019452,2]
[380212599,1755612648313,-480.0,0.00019452,2]
[380212600,1755612648323,-480.0,0.00019452,2]
[380212601,1755612648332,-494.1,0.00019452,2]
[380212602,1755612648341,-480.0,0.00019452,2]
[380212603,1755612648351,-480.0,0.00019452,2]
[380212604,1755612648361,-480.0,0.00019452,2]
[380212605,1755612648370,-480.0,0.00019452,2]
[380212606,1755612648380,-1013.21,0.00019452,2]
[380212607,1755612648389,-1457.45,0.00019452,2]
[380212608,1755612648399,-1169.79,0.00019452,2]
[380212609,1755612648409,-462.47836236,0.00019452,2]
[380212610,1755612648419,-969.12,0.00019452,2]
[380212611,1755612648429,-151.0,0.00019452,2]
[380212612,1755612648439,-480.0,0.00019452,2]
[380212613,1755612648448,-1821.26,0.00019452,2]
[380212614,1755612648459,-151.0,0.00019452,2]
[380212615,1755612648470,-526.44,0.00019452,2]
[380212616,1755612648480,-151.0,0.00019452,2]
[380212617,1755612648490,-480.0,0.00019452,2]
[380212618,1755612648500,-151.0,0.00019452,2]
[380212619,1755612648510,-480.0,0.00019452,2]
[380212620,1755612648519,-480.0,0.00019452,2]
[380212621,1755612648529,-480.0,0.00019452,2]
[380212622,1755612648539,-480.0,0.00019452,2]
[380212623,1755612648550,-480.0,0.00019452,2]
[380212624,1755612648559,-480.0,0.00019452,2]
[380212625,1755612648570,-480.0,0.00019452,2]
[380212626,1755612648580,-1616.43,0.00019452,2]
[380212627,1755612648590,-480.0,0.00019452,2]
[380212628,1755612648600,-445.78916306,0.00019452,2]
[380212629,1755612648610,-661.42,0.00019452,2]
[380212630,1755612648620,-480.0,0.00019452,2]
[380212631,1755612648630,-480.0,0.00019452,2]
[380212632,1755612648640,-175.84362596,0.00019452,2]
[380212633,1755612648652,-1251.75,0.00019452,2]
[380212634,1755612648661,-1066.53,0.00019452,2]
[380212635,1755612648671,-480.0,0.00019452,2]
[380212636,1755612648681,-303.39387725,0.00019452,2]
[380212637,1755612648690,-480.0,0.00019452,2]
[380212638,1755612648700,-480.0,0.00019452,2]
[380212639,1755612648711,-844.3,0.00019452,2]
[380212640,1755612648720,-226.85222765,0.00019452,2]
[380212641,1755612648731,-480.0,0.00019452,2]
[380212642,1755612648741,-440.0,0.00019452,2]
[380212643,1755612648750,-480.0,0.00019452,2]
[380212644,1755612648760,-151.0,0.00019452,2]
[380212645,1755612648769,-480.0,0.00019452,2]
[380212646,1755612648779,-895.2,0.00019452,2]
[380212647,1755612648788,-675.52,0.00019452,2]
[380212648,1755612648797,-480.0,0.00019452,2]
[380212649,1755612648807,-2975.23,0.00019452,2]
[380212650,1755612648816,-1092.72,0.00019452,2]
[380212651,1755612648826,-460.0,0.00019452,2]
[380212652,1755612648836,-263.35872197,0.00019452,2]
[380212653,1755612648846,-480.0,0.00019452,2]
[380212654,1755612648855,-2412.27,0.00019452,2]
[380212655,1755612648865,-4861.85,0.00019452,2]
[380212656,1755612648876,-455.31106279,0.00019452,2]
[380212657,1755612648885,-480.0,0.00019452,2]
[380212658,1755612648895,-480.0,0.00019452,2]
[380212659,1755612648904,-480.0,0.00019452,2]
[380212660,1755612648913,-480.0,0.00019452,2]
[380212661,1755612648922,-480.0,0.00019452,2]
[380212662,1755612648932,-480.0,0.00019452,2]
[380212663,1755612648942,-480.0,0.00019452,2]
[380212664,1755612648951,-1698.38,0.00019452,2]
[380212665,1755612648961,-480.0,0.00019452,2]
[380212666,1755612648971,-480.0,0.00019452,2]
[380212667,1755612648984,-480.0,0.00019452,2]
[380212668,1755612648993,-480.0,0.00019452,2]
[380212669,1755612649003,-480.0,0.00019452,2]
[380212670,1755612649013,-480.0,0.00019452,2]
[380212671,1755612649022,-2825.91,0.00019452,2]
[380212672,1755612649031,-480.0,0.00019452,2]
[380212673,1755612649040,-480.0,0.00019452,2]
[380212674,1755612649050,-460.0,0.00019452,2]
[380212675,1755612649061,-480.0,0.00019452,2]
[380212676,1755612649070,-561.25,0.00019452,2]
[380212677,1755612649079,-480.0,0.00019452,2]
[380212678,1755612649220,-1179.89,0.00019452,2]
[380212679,1755612649230,-151.0,0.00019452,2]
[380212680,1755612649241,-480.0,0.00019452,2]
[380212681,1755612649251,-3215.91,0.00019452,2]
[380212682,1755612649261,-151.0,0.00019452,2]
[380212683,1755612649270,-422.77003729,0.00019452,2]
[380212684,1755612649280,-480.0,0.00019452,2]
[380212685,1755612649290,-480.0,0.00019452,2]
[380212686,1755612649299,-480.0,0.00019452,2]
[380212687,1755612649308,-151.0,0.00019452,2]
[380212688,1755612649318,-151.0,0.00019452,2]
[380212689,1755612649327,-521.4952272,0.00019452,2]
[380212690,1755612649336,-480.0,0.00019452,2]
[380212691,1755612649346,-1056.77,0.00019452,2]
[380212692,1755612649356,-151.0,0.00019452,2]
[380212693,1755612649365,-469.17997011,0.00019452,2]
[380212694,1755612649375,-480.0,0.00019452,2]
[380212695,1755612649384,-151.0,0.00019452,2]
[380212696,1755612649394,-480.0,0.00019452,2]
[380212697,1755612649404,-1620.11,0.00019452,2]
[380212698,1755612649414,-548.98,0.00019452,2]
[380212699,1755612649423,-809.52,0.00019452,2]
[380212700,1755612649433,-480.0,0.00019452,2]
[380212701,1755612649443,-480.0,0.00019452,2]
[380212702,1755612649453,-480.0,0.00019452,2]
[380212703,1755612649463,-480.0,0.00019452,2]
[380212704,1755612649473,-480.0,0.00019452,2]
[380212705,1755612649482,-480.0,0.00019452,2]
[380212706,1755612649492,-480.0,0.00019452,2]
[380212707,1755612649501,-480.0,0.00019452,2]
[380212708,1755612649511,-480.0,0.00019452,2]
[380212709,1755612649520,-480.0,0.00019452,2]
[380212710,1755612649530,-480.0,0.00019452,2]
[380212711,1755612649539,-955.73,0.00019452,2]
[380212712,1755612649549,-2113.53,0.00019452,2]
[380212713,1755612649558,-480.0,0.00019452,2]
[380212714,1755612649567,-480.0,0.00019452,2]
[380212715,1755612649577,-480.0,0.00019452,2]
[380212716,1755612649586,-151.0,0.00019452,2]
[380212717,1755612649596,-839.59,0.00019452,2]
[380212718,1755612649606,-600.83,0.00019452,2]
[380212719,1755612649615,-1223.05,0.00019452,2]
[380212720,1755612649624,-480.0,0.00019452,2]
[380212721,1755612649633,-151.0,0.00019452,2]
[380212722,1755612649643,-2083.8,0.00019452,2]
[380212723,1755612649652,-480.0,0.00019452,2]
[380212724,1755612649661,-480.0,0.00019452,2]
[380212725,1755612649670,-151.0,0.00019452,2]
[380212726,1755612649680,-480.0,0.00019452,2]
[380212727,1755612649689,-151.0,0.00019452,2]
[380212728,1755612649698,-480.0,0.00019452,2]
[380212729,1755612649709,-655.19,0.00019452,2]
[380212730,1755612649719,-480.0,0.00019452,2]
[380212731,1755612649729,-480.0,0.00019452,2]
[380212732,1755612649738,-480.0,0.00019452,2]
[380212733,1755612649747,-550.68107786,0.00019452,2]
[380212734,1755612649756,-480.0,0.00019452,2]
[380212735,1755612649766,-189.87757234,0.00019452,2]
[380212736,1755612649775,-448.98016125,0.00019452,2]
[380212737,1755612649784,-702.29,0.00019452,2]
[380212738,1755612649794,-480.0,0.00019452,2]
[380212739,1755612649803,-586.76,0.00019452,2]
[380212740,1755612649812,-948.85,0.00019452,2]
[380212741,1755612649822,-480.0,0.00019452,2]
[380212742,1755612649831,-812.04,0.00019452,2]
[380212743,1755612649841,-151.0,0.00019452,2]
[380212744,1755612649850,-151.0,0.00019452,2]
[380212745,1755612649860,-480.0,0.00019452,2]
[380212746,1755612649870,-480.0,0.00019452,2]
[380212747,1755612649879,-480.0,0.00019452,2]
[380212748,1755612649888,-480.0,0.00019452,2]
[380212749,1755612649898,-904.03,0.00019452,2]
[380212750,1755612649907,-9635.08,0.00019452,2]
[380212751,1755612649916,-480.0,0.00019452,2]
[380212752,1755612649925,-480.0,0.00019452,2]
[380212753,1755612649935,-2062.67,0.00019452,2]
[380212754,1755612649944,-3655.21,0.00019452,2]
[380212755,1755612649954,-480.0,0.00019452,2]
[380212756,1755612649965,-480.0,0.00019452,2]
[380212757,1755612649978,-151.0,0.00019452,2]
[380212758,1755612649987,-851.83,0.00019452,2]
[380212759,1755612649997,-480.0,0.00019452,2]
[380212760,1755612650006,-480.0,0.00019452,2]
[380212761,1755612650015,-978.76,0.00019452,2]
[380212762,1755612650025,-151.0,0.00019452,2]
[380212763,1755612650035,-480.0,0.00019452,2]
[380212764,1755612650045,-480.0,0.00019452,2]
[380212765,1755612650055,-480.0,0.00019452,2]
[380212766,1755612650064,-151.0,0.00019452,2]
[380212767,1755612650073,-480.0,0.00019452,2]
[380212768,1755612650083,-984.65,0.00019452,2]
[380212769,1755612650092,-480.0,0.00019452,2]
[380212770,1755612650102,-480.0,0.00019452,2]
[380212771,1755612650111,-480.0,0.00019452,2]
[380212772,1755612650121,-480.0,0.00019452,2]
[380212773,1755612650130,-500.0,0.00019452,2]
[380212774,1755612650140,-426.66524518,0.00019467,2]
[380212775,1755612650149,-500.0,0.00019473,2]
[380212776,1755612650159,-500.0,0.00019473,2]
[380212777,1755612650169,-500.0,0.00019473,2]
[380212778,1755612650178,-500.0,0.00019473,2]
[380212779,1755612650188,-269.95031563,0.00019473,2]
[380212780,1755612650197,-500.0,0.00019473,2]
[380212781,1755612650210,-561.50936605,0.00019473,2]
[380212782,1755612650219,-500.0,0.00019473,2]
[380212783,1755612650228,-500.0,0.00019473,2]
[380212784,1755612650237,-500.0,0.00019473,2]
[380212785,1755612650247,-500.0,0.00019473,2]
[380212786,1755612650256,-500.0,0.00019473,2]
[380212787,1755612650265,-500.0,0.00019473,2]
[380212788,1755612650275,-500.0,0.00019473,2]
[380212789,1755612650285,-502.59429379,0.00019473,2]
[380212790,1755612650294,-500.0,0.00019473,2]
[380212791,1755612650304,-161.09194451,0.00019473,2]
[380212792,1755612650314,-151.0,0.00019473,2]
[380212793,1755612650324,-151.0,0.000195,2]
[380212794,1755612650333,-151.0,0.000195,2]
[380212795,1755612650343,-300.0,0.00019561,20]
[380212796,1755612650352,-300.0,0.00019561,20]
[380212797,1755612650362,-300.0,0.00019561,20]
[380212798,1755612650372,-300.0,0.00019561,20]
[380212799,1755612650381,-300.0,0.00019561,20]
[380212800,1755612650390,-300.0,0.00019561,20]
[380212801,1755612650400,-300.0,0.00019561,20]
[380212802,1755612650409,-300.0,0.00019561,20]
[380212803,1755612650420,-300.0,0.00019561,20]
[380212804,1755612650430,-300.0,0.00019561,20]
[380212805,1755612650439,-300.0,0.00019561,20]
[380212806,1755612650449,-300.0,0.00019561,20]
[380212807,1755612650461,-300.0,0.00019561,20]
[380212808,1755612650470,-300.0,0.00019561,20]
[380212809,1755612650479,-300.0,0.00019561,20]
[380212810,1755612650488,-300.0,0.00019561,20]
[380212811,1755612650497,-300.0,0.00019561,20]
[380212812,1755612650506,-300.0,0.00019561,20]
[380212813,1755612650515,-300.0,0.00019561,20]
[380212814,1755612650524,-300.0,0.00019561,20]
[380212815,1755612650534,-600.0,0.00019561,20]
[380212816,1755612650543,-190.0,0.00019575,2]
[380212817,1755612650553,-151.0,0.000196,2]
[380212818,1755612650562,-151.0,0.000196,2]
[380212819,1755612650571,-151.0,0.000196,2]
[380212820,1755612650580,-151.0,0.00019684,2]
[380212821,1755612650589,-222.766115,0.00019684,2]
[380212822,1755612650599,-151.0,0.00019684,2]
[380212823,1755612650608,-12685.85563623,0.00019684,2]
[380212824,1755612650617,-375.88899365,0.00019684,2]
[380212825,1755612650626,-160.0,0.00019684,2]
[380212826,1755612650636,-843.93972674,0.00019684,2]
[380212827,1755612650646,-232.21311493,0.00019684,2]
[380212828,1755612650655,-417.15472785,0.00019684,2]
[380212829,1755612650664,-215.79176414,0.00019684,2]
[380212830,1755612650674,-160.0,0.00019684,2]
[380212831,1755612650684,-528.6845513,0.00019684,2]
[380212832,1755612650693,-216.8835046,0.00019684,2]
[380212833,1755612650702,-160.0,0.00019685,2]
[380212834,1755612650714,-160.0,0.00019685,2]
[380212835,1755612650724,-160.0,0.00019685,2]
[380212836,1755612650734,-160.0,0.00019685,2]
[380212837,1755612650744,-160.0,0.00019685,2]
[380212838,1755612650753,-160.0,0.00019685,2]
[380212839,1755612650763,-160.0,0.00019686,2]
[380212840,1755612650772,-160.0,0.00019686,2]
[380212841,1755612650781,-151.0,0.000197,2]
[380212842,1755612650791,-500.0,0.00019721,2]
[380212843,1755612650800,-1000.0,0.00019721,2]
[380212844,1755612650809,-480.0,0.00019726,2]
[380212845,1755612650819,-480.0,0.00019726,2]
[380212846,1755612650828,-480.0,0.00019726,2]
[380212847,1755612650838,-480.0,0.00019726,2]
[380212848,1755612650848,-480.0,0.00019726,2]
[380212849,1755612650857,-480.0,0.00019726,2]
[380212850,1755612650867,-480.0,0.00019726,2]
[380212851,1755612650876,-480.0,0.00019726,2]
[380212852,1755612650886,-480.0,0.00019726,2]
[380212853,1755612650895,-480.0,0.00019726,2]
[380212854,1755612650904,-700.48,0.00019726,2]
[380212855,1755612650914,-480.0,0.00019726,2]
[380212856,1755612650923,-480.0,0.00019726,2]
[380212857,1755612650932,-480.0,0.00019726,2]
[380212858,1755612650941,-480.0,0.00019726,2]
[380212859,1755612650950,-480.0,0.00019726,2]
[380212860,1755612650961,-689.6,0.00019726,2]
[380212861,1755612650970,-480.0,0.00019726,2]
[380212862,1755612650983,-480.0,0.00019726,2]
[380212863,1755612650992,-480.0,0.00019726,2]
[380212864,1755612651002,-480.0,0.00019726,2]
[380212865,1755612651011,-480.0,0.00019726,2]
[380212866,1755612651022,-9591.59,0.00019726,2]
[380212867,1755612651032,-480.0,0.00019726,2]
[380212868,1755612651041,-480.0,0.00019726,2]
[380212869,1755612651052,-480.0,0.00019726,2]
[380212870,1755612651062,-480.0,0.00019726,2]
[380212871,1755612651072,-480.0,0.00019726,2]
[380212872,1755612651081,-480.0,0.00019726,2]
[380212873,1755612651090,-585.01,0.00019726,2]
[380212874,1755612651099,-480.0,0.00019726,2]
[380212875,1755612651109,-480.0,0.00019726,2]
[380212876,1755612651119,-480.0,0.00019726,2]
[380212877,1755612651129,-778.73,0.00019726,2]
[380212878,1755612651139,-480.0,0.00019726,2]
[380212879,1755612651149,-480.0,0.00019726,2]
[380212880,1755612651158,-480.0,0.00019726,2]
[380212881,1755612651167,-480.0,0.00019726,2]
[380212882,1755612651177,-480.0,0.00019726,2]
[380212883,1755612651186,-480.0,0.00019726,2]
[380212884,1755612651195,-480.0,0.00019726,2]
[380212885,1755612651204,-480.0,0.00019726,2]
[380212886,1755612651215,-480.0,0.00019726,2]
[380212887,1755612651225,-480.0,0.00019726,2]
[380212888,1755612651234,-480.0,0.00019726,2]
[380212889,1755612651243,-480.0,0.00019726,2]
[380212890,1755612651252,-480.0,0.00019726,2]
[380212891,1755612651261,-480.0,0.00019726,2]
[380212892,1755612651271,-480.0,0.00019726,2]
[380212893,1755612651280,-480.0,0.00019726,2]
[380212894,1755612651289,-480.0,0.00019726,2]
[380212895,1755612651299,-480.0,0.00019726,2]
[380212896,1755612651308,-480.0,0.00019726,2]
[380212897,1755612651317,-1296.86,0.00019726,2]
[380212898,1755612651326,-480.0,0.00019726,2]
[380212899,1755612651336,-480.0,0.00019726,2]
[380212900,1755612651345,-359.22437161,0.00019726,2]
[380212901,1755612651354,-480.0,0.00019726,2]
[380212902,1755612651364,-480.0,0.00019726,2]
[380212903,1755612651373,-523.13,0.00019726,2]
[380212904,1755612651382,-480.0,0.00019726,2]
[380212905,1755612651392,-480.0,0.00019726,2]
[380212906,1755612651401,-480.0,0.00019726,2]
[380212907,1755612651410,-480.0,0.00019726,2]
[380212908,1755612651420,-480.0,0.00019726,2]
[380212909,1755612651429,-480.0,0.00019726,2]
[380212910,1755612651438,-389.82296434,0.00019726,2]
[380212911,1755612651447,-480.0,0.00019726,2]
[380212912,1755612651457,-480.0,0.00019726,2]
[380212913,1755612651466,-1414.63,0.00019726,2]
[380212914,1755612651475,-480.0,0.00019726,2]
[380212915,1755612651485,-480.0,0.00019726,2]
[380212916,1755612651494,-550.88,0.00019726,2]
[380212917,1755612651503,-480.0,0.00019726,2]
[380212918,1755612651513,-480.0,0.00019726,2]
[380212919,1755612651522,-480.0,0.00019726,2]
[380212920,1755612651531,-480.0,0.00019726,2]
[380212921,1755612651540,-480.0,0.00019726,2]
[380212922,1755612651549,-460.0,0.00019726,2]
[380212923,1755612651559,-480.0,0.00019726,2]
[380212924,1755612651568,-550.04,0.00019726,2]
[380212925,1755612651577,-480.0,0.00019726,2]
[380212926,1755612651587,-480.0,0.00019726,2]
[380212927,1755612651596,-480.0,0.00019726,2]
[380212928,1755612651605,-480.0,0.00019726,2]
[380212929,1755612651614,-480.0,0.00019726,2]
[380212930,1755612651624,-480.0,0.00019726,2]
[380212931,1755612651633,-480.0,0.00019726,2]
[380212932,1755612651642,-151.0,0.00019726,2]
[380212933,1755612651651,-480.0,0.00019726,2]
[380212934,1755612651661,-480.0,0.00019726,2]
[380212935,1755612651670,-6496.46,0.00019726,2]
[380212936,1755612651679,-151.0,0.00019726,2]
[380212937,1755612651688,-480.0,0.00019726,2]
[380212938,1755612651698,-2041.41,0.00019726,2]
[380212939,1755612651710,-500.0,0.00019726,2]
[380212940,1755612651720,-480.0,0.00019726,2]
[380212941,1755612651730,-480.0,0.00019726,2]
[380212942,1755612651739,-480.0,0.00019726,2]
[380212943,1755612651749,-480.0,0.00019726,2]
[380212944,1755612651758,-480.0,0.00019726,2]
[380212945,1755612651767,-480.0,0.00019726,2]
[380212946,1755612651777,-480.0,0.00019726,2]
[380212947,1755612651786,-480.0,0.00019726,2]
[380212948,1755612651795,-480.0,0.00019726,2]
[380212949,1755612651805,-480.0,0.00019726,2]
[380212950,1755612651814,-480.0,0.00019726,2]
[380212951,1755612651823,-480.0,0.00019726,2]
[380212952,1755612651833,-480.0,0.00019726,2]
[380212953,1755612651842,-480.0,0.00019726,2]
[380212954,1755612651851,-480.0,0.00019726,2]
[380212955,1755612651860,-480.0,0.00019726,2]
[380212956,1755612651869,-480.0,0.00019726,2]
[380212957,1755612651999,-480.0,0.00019726,2]
[380212958,1755612652008,-959.21,0.00019726,2]
[380212959,1755612652019,-480.0,0.00019726,2]
[380212960,1755612652028,-480.0,0.00019726,2]
[380212961,1755612652038,-427.73975666,0.00019726,2]
[380212962,1755612652047,-480.0,0.00019726,2]
[380212963,1755612652057,-151.0,0.00019726,2]
[380212964,1755612652067,-151.0,0.00019726,2]
[380212965,1755612652076,-480.0,0.00019726,2]
[380212966,1755612652086,-480.0,0.00019726,2]
[380212967,1755612652096,-189.52673479,0.00019726,2]
[380212968,1755612652106,-480.0,0.00019726,2]
[380212969,1755612652115,-480.0,0.00019726,2]
[380212970,1755612652125,-480.0,0.00019726,2]
[380212971,1755612652134,-440.54791943,0.00019726,2]
[380212972,1755612652144,-289.36922043,0.00019726,2]
[380212973,1755612652154,-480.0,0.00019726,2]
[380212974,1755612652163,-480.0,0.00019726,2]
[380212975,1755612652173,-480.0,0.00019726,2]
[380212976,1755612652183,-480.0,0.00019726,2]
[380212977,1755612652193,-480.0,0.00019726,2]
[380212978,1755612652204,-480.0,0.00019726,2]
[380212979,1755612652215,-325.55836064,0.00019726,2]
[380212980,1755612652225,-480.0,0.00019726,2]
[380212981,1755612652234,-480.0,0.00019726,2]
[380212982,1755612652244,-480.0,0.00019726,2]
[380212983,1755612652254,-480.0,0.00019726,2]
[380212984,1755612652263,-151.0,0.00019726,2]
[380212985,1755612652273,-480.0,0.00019726,2]
[380212986,1755612652283,-480.0,0.00019726,2]
[380212987,1755612652292,-480.0,0.00019726,2]
[380212988,1755612652302,-522.88,0.00019726,2]
[380212989,1755612652311,-480.0,0.00019726,2]
[380212990,1755612652321,-480.0,0.00019726,2]
[380212991,1755612652331,-480.0,0.00019726,2]
[380212992,1755612652340,-1068.44,0.00019726,2]
[380212993,1755612652350,-480.0,0.00019726,2]
[380212994,1755612652359,-480.0,0.00019726,2]
[380212995,1755612652369,-512.78,0.00019726,2]
[380212996,1755612652378,-480.0,0.00019726,2]
[380212997,1755612652388,-349.13663602,0.00019726,2]
[380212998,1755612652397,-1679.27,0.00019726,2]
[380212999,1755612652407,-499.92,0.00019726,2]
[380213000,1755612652419,-480.0,0.00019726,2]
[380213001,1755612652428,-480.0,0.00019726,2]
[380213002,1755612652438,-480.0,0.00019726,2]
[380213003,1755612652447,-915.94,0.00019726,2]
[380213004,1755612652457,-507.91,0.00019726,2]
[380213005,1755612652466,-480.0,0.00019726,2]
[380213006,1755612652475,-151.0,0.00019726,2]
[380213007,1755612652485,-277.65047291,0.00019726,2]
[380213008,1755612652495,-480.0,0.00019726,2]
[380213009,1755612652504,-480.0,0.00019726,2]
[380213010,1755612652514,-480.0,0.00019726,2]
[380213011,1755612652523,-480.0,0.00019726,2]
[380213012,1755612652533,-1168.58,0.00019726,2]
[380213013,1755612652543,-528.62,0.00019726,2]
[380213014,1755612652553,-480.0,0.00019726,2]
[380213015,1755612652562,-480.0,0.00019726,2]
[380213016,1755612652571,-480.0,0.00019726,2]
[380213017,1755612652581,-229.591592,0.00019726,2]
[380213018,1755612652591,-233.06018368,0.00019726,2]
[380213019,1755612652600,-480.0,0.00019726,2]
[380213020,1755612652609,-480.0,0.00019726,2]
[380213021,1755612652618,-480.0,0.00019726,2]
[380213022,1755612652627,-1432.17,0.00019726,2]
[380213023,1755612652637,-480.0,0.00019726,2]
[380213024,1755612652647,-480.0,0.00019726,2]
[380213025,1755612652656,-480.0,0.00019726,2]
[380213026,1755612652666,-480.0,0.00019726,2]
[380213027,1755612652675,-624.52,0.00019726,2]
[380213028,1755612652684,-480.0,0.00019726,2]
[380213029,1755612652693,-480.0,0.00019726,2]
[380213030,1755612652703,-480.0,0.00019726,2]
[380213031,1755612652714,-480.0,0.00019726,2]
[380213032,1755612652723,-442.95328827,0.00019726,2]
[380213033,1755612652732,-480.0,0.00019726,2]
[380213034,1755612652741,-480.0,0.00019726,2]
[380213035,1755612652751,-935.16,0.00019726,2]
[380213036,1755612652761,-480.0,0.00019726,2]
[380213037,1755612652770,-480.0,0.00019726,2]
[380213038,1755612652779,-572.18,0.00019726,2]
[380213039,1755612652789,-480.0,0.00019726,2]
[380213040,1755612652798,-410.87988343,0.00019726,2]
[380213041,1755612652808,-788.94,0.00019726,2]
[380213042,1755612652817,-480.0,0.00019726,2]
[380213043,1755612652826,-480.0,0.00019726,2]
[380213044,1755612652835,-552.52,0.00019726,2]
[380213045,1755612652846,-700.16,0.00019726,2]
[380213046,1755612652855,-480.0,0.00019726,2]
[380213047,1755612652864,-553.42,0.00019726,2]
[380213048,1755612652873,-151.0,0.00019726,2]
[380213049,1755612652883,-151.0,0.00019726,2]
[380213050,1755612652892,-151.0,0.00019726,2]
[380213051,1755612652902,-151.0,0.00019726,2]
[380213052,1755612652911,-480.0,0.00019726,2]
[380213053,1755612652921,-480.0,0.00019726,2]
[380213054,1755612652930,-480.0,0.00019726,2]
[380213055,1755612652939,-480.0,0.00019726,2]
[380213056,1755612652949,-151.0,0.00019726,2]
[380213057,1755612652958,-151.0,0.00019726,2]
[380213058,1755612652968,-572.32,0.00019726,2]
[380213059,1755612652981,-480.0,0.00019726,2]
[380213060,1755612652991,-2412.64,0.00019726,2]
[380213061,1755612653001,-151.0,0.00019726,2]
[380213062,1755612653011,-151.0,0.00019726,2]
[380213063,1755612653022,-480.0,0.00019726,2]
[380213064,1755612653032,-480.0,0.00019726,2]
[380213065,1755612653041,-767.4,0.00019726,2]
[380213066,1755612653052,-736.09,0.00019726,2]
[380213067,1755612653062,-480.0,0.00019726,2]
[380213068,1755612653071,-480.0,0.00019726,2]
[380213069,1755612653081,-494.1,0.00019726,2]
[380213070,1755612653090,-480.0,0.00019726,2]
[380213071,1755612653099,-480.0,0.00019726,2]
[380213072,1755612653109,-480.0,0.00019726,2]
[380213073,1755612653118,-1013.21,0.00019726,2]
[380213074,1755612653128,-1457.45,0.00019726,2]
[380213075,1755612653137,-1169.79,0.00019726,2]
[380213076,1755612653146,-969.12,0.00019726,2]
[380213077,1755612653155,-480.0,0.00019726,2]
[380213078,1755612653164,-1821.26,0.00019726,2]
[380213079,1755612653174,-526.44,0.00019726,2]
[380213080,1755612653183,-151.0,0.00019726,2]
[380213081,1755612653192,-151.0,0.00019726,2]
[380213082,1755612653201,-480.0,0.00019726,2]
[380213083,1755612653211,-480.0,0.00019726,2]
[380213084,1755612653221,-480.0,0.00019726,2]
[380213085,1755612653230,-383.14133038,0.00019726,2]
[380213086,1755612653239,-212.8104296,0.00019726,2]
[380213087,1755612653249,-480.0,0.00019726,2]
[380213088,1755612653259,-480.0,0.00019726,2]
[380213089,1755612653268,-1616.43,0.00019726,2]
[380213090,1755612653277,-465.41724905,0.00019726,2]